bitfinex-derivatives/quotes_BTCF0:USTF0_20260207
["timestamp","ask_amount","ask_price","bid_price","bid_amount"]
[1770483219943,0.01128696,69119.0,69101.0,0.29284894]
[1770483220144,0.01128696,69119.0,69094.0,0.28494193]
[1770483220648,0.01128696,69119.0,69087.0,0.01092903]
[1770483220842,0.01128696,69118.0,69087.0,0.29661635]
[1770483221044,0.01128696,69118.0,69080.0,0.29513892]
[1770483221446,0.01128696,69112.0,69080.0,0.29513892]
[1770483222340,0.01128696,69112.0,69080.0,0.30606795]
[1770483223951,0.01128696,69112.0,69081.0,0.01092903]
[1770483227452,0.01128696,69120.0,69088.0,0.01092903]
[1770483227647,0.01128696,69120.0,69080.0,0.30606795]
[1770483228549,0.01128696,69120.0,69081.0,0.01092903]
[1770483238957,0.01128696,69120.0,69071.0,0.2909472]
[1770483239161,0.01128696,69120.0,69072.0,0.01092903]
[1770483241255,0.01128696,69119.0,69072.0,0.01092903]
[1770483241666,0.01128696,69118.0,69072.0,0.01092903]
[1770483243366,0.01128696,69118.0,69073.0,0.01092903]
[1770483243566,0.4357774,69118.0,69073.0,0.01092903]
[1770483243758,0.01128696,69117.0,69073.0,0.01092903]
[1770483244363,0.01128696,69115.0,69073.0,0.01092903]
[1770483244859,0.01128696,69115.0,69079.0,0.01092903]
[1770483245063,0.01128696,69115.0,69081.0,0.01092903]
[1770483248169,0.01136487,69125.0,69083.0,0.01064919]
[1770483248359,0.01136487,69125.0,69089.0,0.01064919]
[1770483248560,0.01136487,69125.0,69091.0,0.01064919]
[1770483249270,0.01136487,69125.0,69092.0,0.01064919]
[1770483250064,0.01136487,69125.0,69094.0,0.01064919]
[1770483250265,0.01136487,69142.0,69094.0,0.01064919]
[1770483250473,0.01136487,69142.0,69101.0,0.01067735]
[1770483250670,0.01136487,69142.0,69104.0,0.01067735]
[1770483251971,0.42449044,69155.0,69108.0,0.01067735]
[1770483251972,0.01063742,69154.0,69108.0,0.01067735]
[1770483252170,0.42449044,69148.0,69108.0,0.01067735]
[1770483252476,0.42449044,69152.0,69121.0,0.01067735]
[1770483252868,0.42449044,69153.0,69121.0,0.01067735]
[1770483253277,0.42449044,69157.0,69121.0,0.01067735]
[1770483253768,0.42449044,69160.0,69121.0,0.01067735]
[1770483254170,0.43512786,69162.0,69121.0,0.01067735]
[1770483254476,0.01063742,69161.0,69121.0,0.01067735]
[1770483255572,0.01063742,69161.0,69142.0,0.2844835]
[1770483257580,0.01063742,69161.0,69135.0,0.29227004]
[1770483258574,0.01063742,69161.0,69123.0,0.01067735]
[1770483260483,0.01063742,69161.0,69123.0,0.29617129]
[1770483260677,0.01063742,69158.0,69123.0,0.29617129]
[1770483260884,0.01063742,69158.0,69107.0,0.01067735]
[1770483261182,0.05,69116.0,69107.0,0.01067735]
[1770483261378,0.05,69116.0,69109.0,0.28380847]
[1770483261782,0.05,69110.0,69102.0,0.28595151]
[1770483262276,0.04421542,69103.0,69102.0,0.28595151]
[1770483262475,0.04179977,69103.0,69102.0,0.28595151]
[1770483262883,0.04179977,69103.0,69081.0,0.01067735]
[1770483264284,0.01063742,69114.0,69081.0,0.01067735]
[1770483264486,0.0074963,69137.0,69101.0,0.01067735]
[1770483264683,0.0074963,69137.0,69112.0,0.01067735]
[1770483264884,0.0002,69145.0,69076.0,0.11569519]
[1770483264885,0.002,69136.0,69076.0,0.11569519]
[1770483265083,0.002,69136.0,69060.0,0.44190609]
[1770483265084,0.014481,69113.0,69052.0,0.01166666]
[1770483265283,0.00014112,69105.0,69052.0,0.01152554]
[1770483265781,0.00014112,69103.0,69052.0,0.01152554]
[1770483266287,0.00014112,69103.0,69057.0,0.01170125]
[1770483269886,0.00079357,69122.0,69071.0,0.0115333]
[1770483271487,0.00079357,69122.0,69076.0,0.0115333]
[1770483276884,0.00110418,69145.0,69078.0,0.0112986]
[1770483281586,0.00088593,69138.0,69078.0,0.0112986]
[1770483281889,0.00088593,69126.0,69078.0,0.0112986]
[1770483282790,0.00084613,69125.0,69078.0,0.0112986]
[1770483283987,0.00112612,69124.0,69078.0,0.0112986]
[1770483286703,0.42561656,69124.0,69078.0,0.0112986]
[1770483286894,0.00102629,69123.0,69078.0,0.0112986]
[1770483287596,0.00102629,69121.0,69078.0,0.0112986]
[1770483288395,0.00107252,69119.0,69078.0,0.0112986]
[1770483298502,0.00087496,69118.0,69078.0,0.0112986]
[1770483301308,0.42449044,69120.0,69081.0,0.01138504]
[1770483301503,0.00084487,69133.0,69086.0,0.11484742]
[1770483301701,0.01166666,69134.0,69080.0,0.11484742]
[1770483302000,0.01166666,69134.0,69064.0,0.2408]
[1770483302200,0.01167062,69130.0,69064.0,0.2408]
[1770483302402,0.01167062,69118.0,69064.0,0.2408]
[1770483302703,0.005,69117.0,69064.0,0.2408]
[1770483302905,0.01167062,69116.0,69065.0,0.014491]
[1770483303306,0.58739962,69115.0,69065.0,0.014491]
[1770483303502,0.01167062,69114.0,69065.0,0.014491]
[1770483303800,0.01167062,69114.0,69066.0,0.00050749]
[1770483305500,0.01167062,69114.0,69068.0,0.00050749]
[1770483305707,0.005,69117.0,69081.0,0.00050749]
[1770483306406,0.0114975,69122.0,69081.0,0.00050749]
[1770483308904,0.0114975,69122.0,69080.0,0.14694683]
[1770483308905,0.005,69124.0,69086.0,0.000317]
[1770483310699,0.005,69130.0,69086.0,0.000317]
[1770483310899,0.005,69130.0,69090.0,0.00031763]
[1770483314808,0.005,69130.0,69101.0,0.00043408]
[1770483315107,0.01152197,69142.0,69101.0,0.00043408]
[1770483315305,0.005,69150.0,69101.0,0.00043408]
[1770483315514,0.01152197,69149.0,69107.0,0.00043408]
[1770483315907,0.01152197,69149.0,69108.0,0.00073667]
[1770483316103,0.01172197,69149.0,69109.0,0.00073667]
[1770483316704,0.01172197,69149.0,69131.0,0.00073667]
[1770483317313,0.01152197,69149.0,69131.0,0.00073667]
[1770483317714,0.01152197,69149.0,69103.0,0.21533892]
[1770483317715,0.01152197,69149.0,69105.0,0.00073667]
[1770483320816,0.01146229,69146.0,69105.0,0.00073667]
[1770483321711,0.01146229,69145.0,69091.0,0.00091423]
[1770483322112,0.014474,69146.0,69091.0,0.00091423]
[1770483322113,0.01146229,69142.0,69091.0,0.00091423]
[1770483322508,0.014474,69146.0,69091.0,0.00091423]
[1770483322509,0.01146229,69137.0,69091.0,0.00091423]
[1770483323116,0.01166229,69137.0,69091.0,0.00091423]
[1770483323304,0.01166229,69137.0,69096.0,0.29237772]
[1770483323503,0.01166229,69137.0,69091.0,0.00091423]
[1770483324512,0.01146229,69136.0,69091.0,0.00091423]
[1770483325015,0.01146229,69132.0,69091.0,0.00091423]
[1770483325313,0.01146229,69128.0,69089.0,0.28667152]
[1770483325716,0.01146229,69126.0,69089.0,0.28667152]
[1770483326313,0.01146229,69126.0,69083.0,0.00082492]
[1770483329019,0.01146229,69117.0,69062.0,0.00069243]
[1770483329322,0.049,69083.0,69046.0,0.00069243]
[1770483329522,0.049,69083.0,69051.0,0.00069243]
[1770483329917,0.01146229,69089.0,69051.0,0.00069243]
[1770483330317,0.01146229,69089.0,69061.0,0.00092754]
[1770483331016,0.014481,69113.0,69033.0,0.00092754]
[1770483331017,0.01146229,69087.0,69033.0,0.00092754]
[1770483331219,0.01146229,69087.0,69040.0,0.28664314]
[1770483331515,0.01146229,69087.0,69041.0,0.00092754]
[1770483333025,0.01146229,69087.0,69044.0,0.00085269]
[1770483333429,0.01146229,69087.0,69040.0,0.28664314]
[1770483333430,0.01146229,69087.0,69046.0,0.00085269]
[1770483337825,0.0002,69106.0,69053.0,0.00100094]
[1770483337826,0.01160624,69105.0,69053.0,0.00100094]
[1770483338322,0.01160624,69105.0,69062.0,0.00100094]
[1770483340625,0.01160624,69105.0,69048.0,0.11556138]
[1770483340626,0.01160624,69105.0,69064.0,0.00056869]
[1770483343640,0.01160624,69105.0,69060.0,0.14694683]
[1770483343641,0.01160624,69105.0,69066.0,0.00061052]
[1770483344143,0.01160624,69105.0,69060.0,0.14694683]
[1770483344144,0.01160624,69105.0,69068.0,0.00067926]
[1770483355135,0.01160624,69102.0,69068.0,0.00067926]
[1770483355340,0.575729,69111.0,69068.0,0.00067926]
[1770483355341,0.01160624,69100.0,69068.0,0.00067926]
[1770483358635,0.01160624,69098.0,69068.0,0.00067926]
[1770483359339,0.01160624,69097.0,69068.0,0.00067926]
[1770483359546,0.01160624,69097.0,69061.0,0.00086501]
[1770483360639,0.01160624,69096.0,69061.0,0.00086501]
[1770483360948,0.01160624,69089.0,69054.0,0.00097238]
[1770483361544,0.01160624,69086.0,69054.0,0.00097238]
[1770483363840,0.01160624,69086.0,69043.0,0.00025996]
[1770483368143,0.01160624,69086.0,69040.0,0.28664314]
[1770483369046,0.01160624,69086.0,69040.0,0.28701889]
[1770483369551,0.01160624,69086.0,69040.0,0.28664314]
[1770483370046,0.01160624,69086.0,69033.0,0.28849733]
[1770483370259,0.01158773,69085.0,69033.0,0.28812158]
[1770483370751,0.01158773,69082.0,69033.0,0.28812158]
[1770483371859,0.01158773,69082.0,69019.0,0.00087197]
[1770483372254,0.01059347,69076.0,69019.0,0.00087197]
[1770483372459,0.01059347,69076.0,69010.0,0.14693389]
[1770483372460,0.02508247,69076.0,69017.0,0.2953793]
[1770483372752,0.01059347,69068.0,69017.0,0.2953793]
[1770483373142,0.01059347,69068.0,69018.0,0.01140973]
[1770483375049,0.01059347,69068.0,69017.0,0.2953793]
[1770483375355,0.01059347,69068.0,69018.0,0.01140973]
[1770483377849,0.01059347,69068.0,69001.0,0.01140973]
[1770483378448,0.01059347,69068.0,69011.0,0.01140973]
[1770483378956,0.01059347,69065.0,69011.0,0.01140973]
[1770483380357,0.01059347,69065.0,69010.0,0.29091447]
[1770483380358,0.01059347,69063.0,69010.0,0.29091447]
[1770483380569,0.01059347,69063.0,68985.0,0.1154999]
[1770483380570,0.01059347,69061.0,68994.0,0.01140973]
[1770483380745,0.01059347,69052.0,68987.0,0.29885344]
[1770483380951,0.01059347,69047.0,68987.0,0.29885344]
[1770483381152,0.01059347,69038.0,68987.0,0.29885344]
[1770483381448,0.01059347,69034.0,68987.0,0.01140973]
[1770483381652,0.01059347,69034.0,68977.0,0.29256206]
[1770483382255,0.01059347,69027.0,68978.0,0.01140973]
[1770483383159,0.01059347,69027.0,68968.0,0.01140973]
[1770483384156,0.01059347,69025.0,68968.0,0.01140973]
[1770483384950,0.01059347,69022.0,68968.0,0.01140973]
[1770483388465,0.01059347,69022.0,68958.0,0.014514]
[1770483388466,0.01059347,69022.0,68960.0,0.01140973]
[1770483388654,0.01059347,69022.0,68963.0,0.01140973]
[1770483389453,0.01059347,69020.0,68963.0,0.01140973]
[1770483390564,0.01059347,69016.0,68963.0,0.01140973]
[1770483391063,0.01059347,69012.0,68955.0,0.01140973]
[1770483392656,0.01059347,69010.0,68955.0,0.01140973]
[1770483392961,0.01059347,69009.0,68955.0,0.01140973]
[1770483393161,0.01059347,69008.0,68944.0,0.01140973]
[1770483393561,0.01059347,69008.0,68948.0,0.01140973]
[1770483393757,0.01059347,69008.0,68954.0,0.01140973]
[1770483394064,0.01059347,69008.0,68950.0,0.14693389]
[1770483394065,0.01059347,69008.0,68957.0,0.01140973]
[1770483394559,0.01059347,69008.0,68962.0,0.014513]
[1770483394759,0.01059347,69008.0,68966.0,0.01140973]
[1770483395358,0.01059347,69008.0,68968.0,0.01140973]
[1770483397363,0.4288075,69037.0,68971.0,0.01103448]
[1770483397663,0.01145608,69036.0,68971.0,0.01103448]
[1770483398461,0.4288075,69034.0,68972.0,0.01103448]
[1770483398669,0.01145608,69033.0,68972.0,0.01103448]
[1770483398868,0.44026358,69033.0,68972.0,0.01103448]
[1770483399169,0.01145608,69032.0,68972.0,0.01103448]
[1770483399363,0.01145608,69031.0,68972.0,0.01103448]
[1770483399769,0.01145608,69031.0,68975.0,0.01103448]
[1770483400567,0.01145608,69028.0,68975.0,0.01103448]
[1770483401270,0.01145608,69022.0,68954.0,0.01103448]
[1770483401474,0.01145608,69019.0,68954.0,0.01103448]
[1770483401673,0.01145608,69013.0,68954.0,0.01103448]
[1770483401884,0.1453,69022.0,68954.0,0.01103448]
[1770483401885,0.01145608,69002.0,68954.0,0.01103448]
[1770483402369,0.01140608,68996.0,68942.0,0.28806668]
[1770483402563,0.4288075,68982.0,68932.0,0.0002]
[1770483402766,0.4288075,68982.0,68926.0,0.01103448]
[1770483402767,0.06045608,68951.0,68926.0,0.01103448]
[1770483403276,0.049,68951.0,68926.0,0.01103448]
[1770483403467,0.049,68951.0,68929.0,0.01103448]
[1770483403668,0.01145608,68969.0,68931.0,0.01103448]
[1770483403871,0.01145608,68980.0,68934.0,0.01103448]
[1770483404178,0.01145608,68980.0,68941.0,0.01103448]
[1770483404373,0.01145608,68980.0,68927.0,0.01103448]
[1770483404975,0.01145608,68980.0,68931.0,0.01103448]
[1770483405376,0.01145608,68980.0,68935.0,0.01103448]
[1770483405769,0.01145608,68980.0,68938.0,0.01103448]
[1770483405971,0.01145608,68980.0,68941.0,0.01103448]
[1770483406470,0.01145608,68998.0,68945.0,0.01103448]
[1770483406665,0.01145608,68998.0,68951.0,0.01103448]
[1770483408573,0.01145608,68997.0,68951.0,0.01103448]
[1770483410585,0.01145608,68996.0,68951.0,0.01103448]
[1770483412472,0.01145608,68995.0,68951.0,0.01103448]
[1770483412982,0.01145608,68993.0,68951.0,0.01103448]
[1770483413376,0.01145608,68993.0,68952.0,0.01103448]
[1770483414978,0.01145608,68993.0,68954.0,0.01103448]
[1770483416183,0.01145608,69000.0,68961.0,0.01103448]
[1770483416373,0.44026358,69007.0,68963.0,0.01103448]
[1770483416574,0.01145608,69007.0,68967.0,0.01103448]
[1770483420282,0.01145608,69007.0,68983.0,0.01103448]
[1770483420785,0.01145608,69024.0,68983.0,0.01103448]
[1770483422185,0.01145608,69021.0,68972.0,0.01103448]
[1770483422388,0.01145608,69021.0,68948.0,0.11461108]
[1770483422389,0.01145608,69021.0,68983.0,0.01103448]
[1770483423092,0.01145608,69029.0,68987.0,0.01103448]
[1770483423390,0.01145608,69039.0,68997.0,0.01103448]
[1770483424992,0.01145608,69039.0,69001.0,0.01103448]
[1770483425285,0.575729,69061.0,69006.0,0.01103448]
[1770483425286,0.01152075,69057.0,69006.0,0.01103448]
[1770483425882,0.01152075,69057.0,69008.0,0.01163151]
[1770483426088,0.01152075,69057.0,69003.0,0.072523]
[1770483426089,0.01152075,69057.0,69021.0,0.01163151]
[1770483426290,0.01152075,69076.0,69021.0,0.01163151]
[1770483427284,0.01152075,69076.0,69023.0,0.01163151]
[1770483432494,0.0112576,69057.0,69001.0,0.01114812]
[1770483432798,0.0112576,69057.0,68982.0,0.29346091]
[1770483432799,0.0112576,69051.0,69009.0,0.01114812]
[1770483435907,0.0112576,69071.0,69016.0,0.01114812]
[1770483438397,0.0112576,69071.0,69010.0,0.14745515]
[1770483438398,0.0112576,69071.0,69018.0,0.01114812]
[1770483439103,0.0112576,69071.0,69011.0,0.2408]
[1770483439104,0.0112576,69071.0,69022.0,0.01114812]
[1770483445102,0.0112576,69068.0,69022.0,0.01114812]
[1770483445419,0.0112576,69065.0,69022.0,0.01114812]
[1770483445811,0.0112576,69059.0,69022.0,0.01114812]
[1770483446414,0.0112576,69054.0,69022.0,0.01114812]
[1770483447910,0.005,69055.0,69022.0,0.01114812]
[1770483448109,0.005,69051.0,69022.0,0.01114812]
[1770483448516,0.005,69047.0,69022.0,0.01114812]
[1770483448916,0.0112576,69063.0,69022.0,0.01114812]
[1770483449216,0.0112576,69071.0,69022.0,0.01114812]
[1770483449416,0.0112576,69071.0,69031.0,0.01114812]
[1770483449607,0.005,69067.0,69031.0,0.01114812]
[1770483450118,0.4288075,69074.0,69033.0,0.00998312]
[1770483450417,0.0112576,69074.0,69033.0,0.00998312]
[1770483450615,0.005,69067.0,69033.0,0.00998312]
[1770483451011,0.0112576,69066.0,69033.0,0.00998312]
[1770483451210,0.0112576,69066.0,69013.0,0.014502]
[1770483451408,0.0112576,69061.0,69014.0,0.00998312]
[1770483452017,0.0112576,69054.0,69014.0,0.00998312]
[1770483452218,0.0112576,69054.0,69015.0,0.01006666]
[1770483452419,0.0112576,69054.0,69011.0,0.01006666]
[1770483452714,0.0112576,69050.0,69003.0,0.01006666]
[1770483452915,0.005,69047.0,69003.0,0.01006666]
[1770483453219,0.0112576,69046.0,69003.0,0.01006666]
[1770483455011,0.0112576,69042.0,69003.0,0.01006666]
[1770483455207,0.0112576,69042.0,69005.0,0.01023352]
[1770483456815,0.0112576,69042.0,69004.0,0.12911508]
[1770483456816,0.005,69043.0,69011.0,0.01008138]
[1770483457617,0.01560805,69047.0,69011.0,0.01008138]
[1770483461014,0.01060805,69046.0,69011.0,0.01008138]
[1770483462523,0.005,69042.0,69011.0,0.01008138]
[1770483463320,0.01060805,69041.0,69012.0,0.01021279]
[1770483463919,0.01060805,69038.0,69012.0,0.01021279]
[1770483465323,0.005,69039.0,69012.0,0.01021279]
[1770483466218,0.01060805,69046.0,69012.0,0.01021279]
[1770483466722,0.005,69047.0,69014.0,0.01034501]
[1770483468026,0.005,69047.0,69017.0,0.01062855]
[1770483470022,0.005,69047.0,69018.0,0.014501]
[1770483470227,0.01060805,69055.0,69019.0,0.01059871]
[1770483470932,0.005,69047.0,69020.0,0.01059871]
[1770483471329,0.01060805,69055.0,69021.0,0.0145]
[1770483471531,0.01060805,69055.0,69022.0,0.01059871]
[1770483473832,0.01060805,69052.0,69022.0,0.01059871]
[1770483476730,0.01060805,69048.0,69022.0,0.01059871]
[1770483480137,0.005,69049.0,69022.0,0.01059871]
[1770483480735,0.005,69049.0,69025.0,0.0105717]
[1770483481437,0.01060805,69056.0,69025.0,0.0105717]
[1770483481639,0.005,69050.0,69025.0,0.0105717]
[1770483481833,0.005,69055.0,69025.0,0.0105717]
[1770483482233,0.01060805,69056.0,69025.0,0.0105717]
[1770483482432,0.01060805,69056.0,69024.0,0.0145]
[1770483482433,0.01060805,69071.0,69031.0,0.01055321]
[1770483482632,0.01060805,69071.0,69030.0,0.14716155]
[1770483482633,0.01060805,69078.0,69036.0,0.01055321]
[1770483482837,0.575729,69098.0,69051.0,0.01055321]
[1770483482838,0.01060805,69085.0,69051.0,0.01055321]
[1770483484443,0.01060805,69085.0,69059.0,0.01062855]
[1770483487347,0.01060805,69085.0,69074.0,0.29426727]
[1770483489048,0.01060805,69085.0,69067.0,0.28670487]
[1770483490445,0.005,69084.0,69067.0,0.28670487]
[1770483490740,0.01094835,69083.0,69067.0,0.28670487]
[1770483492142,0.01094835,69083.0,69067.0,0.16368248]
[1770483492448,0.01094835,69083.0,69052.0,0.01041965]
[1770483493542,0.01094835,69083.0,69062.0,0.28608854]
[1770483493742,0.01117492,69076.0,69055.0,0.28895725]
[1770483494139,0.01117492,69075.0,69055.0,0.28895725]
[1770483494445,0.4288075,69076.0,69056.0,0.01111744]
[1770483494646,0.01117492,69082.0,69056.0,0.01111744]
[1770483495444,0.43998242,69082.0,69056.0,0.01111744]
[1770483495649,0.01117492,69081.0,69056.0,0.01111744]
[1770483496345,0.01117492,69080.0,69056.0,0.01111744]
[1770483496543,0.01117492,69079.0,69056.0,0.01111744]
[1770483496743,0.01117492,69079.0,69055.0,0.28895725]
[1770483496945,0.01117492,69071.0,69055.0,0.28895725]
[1770483500150,0.01117492,69071.0,69045.0,0.01111744]
[1770483500348,0.4288075,69072.0,69058.0,0.28425048]
[1770483500547,0.43998242,69078.0,69058.0,0.01111744]
[1770483501251,0.01117492,69077.0,69051.0,0.30125057]
[1770483501548,0.01117492,69076.0,69051.0,0.30125057]
[1770483503551,0.01117492,69076.0,69043.0,0.01111744]
[1770483503749,0.01117492,69076.0,69038.0,0.28494165]
[1770483504358,0.01617492,69076.0,69038.0,0.28494165]
[1770483504553,0.01117492,69075.0,69038.0,0.28494165]
[1770483506952,0.01117492,69075.0,69036.0,0.01111744]
[1770483507553,0.01117492,69075.0,69040.0,0.28991892]
[1770483508464,0.01117492,69072.0,69040.0,0.28991892]
[1770483510154,0.01117492,69068.0,69040.0,0.28991892]
[1770483510355,0.01117492,69068.0,69036.0,0.01111744]
[1770483511265,0.01117492,69067.0,69036.0,0.01111744]
[1770483513262,0.005,69060.0,69036.0,0.01111744]
[1770483513663,0.01117492,69061.0,69036.0,0.01111744]
[1770483514761,0.01117492,69085.0,69046.0,0.01111744]
[1770483514962,0.01117492,69092.0,69051.0,0.01111744]
[1770483515263,0.005,69091.0,69051.0,0.01111744]
[1770483515657,0.01096634,69091.0,69051.0,0.01111744]
[1770483518767,0.01096634,69099.0,69054.0,0.01089598]
[1770483520759,0.01096634,69099.0,69056.0,0.01089598]
[1770483520959,0.01096634,69099.0,69058.0,0.01089598]
[1770483525369,0.01096634,69099.0,69060.0,0.01089598]
[1770483525568,0.01096634,69099.0,69071.0,0.01089598]
[1770483525767,0.01096634,69114.0,69071.0,0.01089598]
[1770483525973,0.01096634,69114.0,69075.0,0.01089598]
[1770483527374,0.01096634,69114.0,69078.0,0.01089598]
[1770483527771,0.01096634,69125.0,69078.0,0.01089598]
[1770483528173,0.01096634,69125.0,69081.0,0.01089598]
[1770483528670,0.01096634,69125.0,69091.0,0.01089598]
[1770483532277,0.01096634,69125.0,69091.0,0.01189598]
[1770483533874,0.01096634,69125.0,69091.0,0.01089598]
[1770483534080,0.01096634,69125.0,69091.0,0.01189598]
[1770483535884,0.01096634,69125.0,69091.0,0.001]
[1770483536082,0.01096634,69125.0,69084.0,0.01089598]
[1770483542676,0.01096634,69132.0,69085.0,0.014487]
[1770483542971,0.01096634,69132.0,69086.0,0.01089598]
[1770483543583,0.01096634,69132.0,69089.0,0.01089598]
[1770483544383,0.01096634,69132.0,69092.0,0.01089598]
[1770483544779,0.01096634,69132.0,69096.0,0.01089598]
[1770483544982,0.01096634,69140.0,69101.0,0.01089598]
[1770483546778,0.01096634,69140.0,69101.0,0.01189598]
[1770483547184,0.01096634,69140.0,69122.0,0.29478629]
[1770483548996,0.01096634,69140.0,69120.0,0.01140133]
[1770483549493,0.01583238,69158.0,69115.0,0.28627448]
[1770483549494,0.01134498,69148.0,69123.0,0.01140133]
[1770483551276,0.01166456,69155.0,69123.0,0.01140133]
[1770483552280,0.01166456,69155.0,69123.0,0.01240133]
[1770483552993,0.01583238,69158.0,69123.0,0.01240133]
[1770483552994,0.01166456,69157.0,69123.0,0.001]
[1770483553986,0.01166456,69150.0,69123.0,0.001]
[1770483554592,0.01166456,69150.0,69122.0,0.29585322]
[1770483554893,0.01166456,69150.0,69116.0,0.01060861]
[1770483556291,0.01166456,69147.0,69115.0,0.29688309]
[1770483556483,0.01166456,69143.0,69115.0,0.29688309]
[1770483556689,0.01166456,69143.0,69116.0,0.01060861]
[1770483557689,0.005,69144.0,69123.0,0.01060861]
[1770483557893,0.005,69148.0,69123.0,0.01060861]
[1770483558396,0.01166456,69152.0,69123.0,0.01060861]
[1770483559393,0.01166456,69152.0,69123.0,0.01160861]
[1770483561484,0.01166456,69152.0,69123.0,0.001]
[1770483561885,0.01166456,69152.0,69115.0,0.28627448]
[1770483562091,0.01166456,69152.0,69123.0,0.001]
[1770483562593,0.01166456,69152.0,69124.0,0.01060861]
[1770483564084,0.01166456,69152.0,69116.0,0.01060861]
[1770483564282,0.01166456,69152.0,69115.0,0.28627448]
[1770483564798,0.01166456,69152.0,69124.0,0.001]
[1770483564997,0.01186456,69152.0,69124.0,0.001]
[1770483565494,0.01186456,69152.0,69116.0,0.01060861]
[1770483566189,0.01166456,69152.0,69116.0,0.01060861]
[1770483567193,0.01166456,69148.0,69123.0,0.01060861]
[1770483567588,0.005,69145.0,69123.0,0.01060861]
[1770483567790,0.01166456,69148.0,69123.0,0.01060861]
[1770483567999,0.01166456,69148.0,69122.0,0.28449145]
[1770483568296,0.01166456,69148.0,69115.0,0.29688309]
[1770483568497,0.01166456,69147.0,69123.0,0.001]
[1770483568694,0.01166456,69147.0,69115.0,0.29688309]
[1770483568695,0.01166456,69147.0,69108.0,0.01060861]
[1770483569192,0.01166456,69140.0,69108.0,0.01060861]
[1770483569393,0.01166456,69140.0,69108.0,0.29591743]
[1770483569593,0.01166456,69140.0,69102.0,0.01060861]
[1770483570200,0.01166456,69136.0,69102.0,0.01060861]
[1770483572290,0.01166456,69136.0,69103.0,0.01060861]
[1770483572598,0.01166456,69136.0,69109.0,0.01060861]
[1770483573391,0.01166456,69136.0,69110.0,0.01060861]
[1770483574587,0.01166456,69136.0,69110.0,0.01160861]
[1770483577097,0.005,69131.0,69110.0,0.01160861]
[1770483577298,0.01062065,69130.0,69110.0,0.01160861]
[1770483580104,0.01062065,69130.0,69110.0,0.01060861]
[1770483580308,0.01062065,69130.0,69110.0,0.01160861]
[1770483580610,0.01062065,69130.0,69110.0,0.001]
[1770483580815,0.01062065,69130.0,69101.0,0.29499079]
[1770483580816,0.01062065,69127.0,69101.0,0.29499079]
[1770483581715,0.01062065,69123.0,69101.0,0.29499079]
[1770483582011,0.01062065,69123.0,69101.0,0.29599079]
[1770483582909,0.01062065,69123.0,69101.0,0.001]
[1770483583512,0.01062065,69123.0,69101.0,0.28536267]
[1770483584311,0.01062065,69123.0,69073.0,0.01141351]
[1770483584511,0.01062065,69122.0,69073.0,0.01141351]
[1770483584914,0.01062065,69120.0,69075.0,0.01141351]
[1770483585106,0.01062065,69120.0,69097.0,0.01141351]
[1770483586414,0.005,69124.0,69097.0,0.01141351]
[1770483587412,0.005,69124.0,69097.0,0.01241351]
[1770483589426,0.01062065,69130.0,69098.0,0.01141351]
[1770483589616,0.005,69127.0,69098.0,0.01141351]
[1770483591316,0.005,69127.0,69098.0,0.01241351]
[1770483592224,0.005,69127.0,69103.0,0.01141351]
[1770483593318,0.00221762,69127.0,69103.0,0.01141351]
[1770483594115,0.00221762,69136.0,69103.0,0.01141351]
[1770483594311,0.00221762,69136.0,69105.0,0.01141351]
[1770483594522,0.0002,69149.0,69105.0,0.01141351]
[1770483594523,0.00221762,69125.0,69105.0,0.01141351]
[1770483595616,0.00221762,69120.0,69105.0,0.01141351]
[1770483596217,0.01062065,69144.0,69111.0,0.01141351]
[1770483596418,0.01062065,69144.0,69115.0,0.01141351]
[1770483596728,0.01062065,69144.0,69098.0,0.11516737]
[1770483596923,0.01062065,69125.0,69073.0,0.01141351]
[1770483597115,0.01062065,69112.0,69058.0,0.21699236]
[1770483597319,0.01062065,69104.0,69047.0,0.01141351]
[1770483597517,0.049,69071.0,69057.0,0.29700535]
[1770483597720,0.01062065,69070.0,69040.0,0.21699236]
[1770483597920,0.01062065,69070.0,69041.0,0.21760387]
[1770483598121,0.01062065,69070.0,69038.0,0.01141351]
[1770483601927,0.0002,69100.0,69058.0,0.01141351]
[1770483602115,0.0002,69100.0,69039.0,0.21761916]
[1770483602116,0.01062065,69146.0,69091.0,0.01141351]
[1770483602320,0.01062065,69144.0,69095.0,0.01141351]
[1770483602714,0.01062065,69142.0,69095.0,0.01141351]
[1770483603136,0.01062065,69140.0,69095.0,0.01141351]
[1770483603522,0.01062065,69138.0,69095.0,0.01141351]
[1770483604024,0.01062065,69136.0,69095.0,0.01141351]
[1770483604420,0.005,69135.0,69095.0,0.01141351]
[1770483604627,0.01062065,69134.0,69095.0,0.01141351]
[1770483604825,0.01062065,69132.0,69095.0,0.01141351]
[1770483605221,0.01062065,69130.0,69095.0,0.01141351]
[1770483605624,0.005,69129.0,69095.0,0.01141351]
[1770483605828,0.005,69129.0,69095.0,0.01241351]
[1770483606029,0.005,69128.0,69095.0,0.01241351]
[1770483606228,0.005,69129.0,69095.0,0.01241351]
[1770483606729,0.005,69128.0,69095.0,0.01241351]
[1770483606929,0.005,69129.0,69095.0,0.01241351]
[1770483607321,0.005,69128.0,69095.0,0.01141351]
[1770483607518,0.005,69129.0,69095.0,0.01241351]
[1770483607919,0.005,69128.0,69095.0,0.01241351]
[1770483608122,0.01062065,69130.0,69095.0,0.01241351]
[1770483608123,0.005,69129.0,69095.0,0.01241351]
[1770483608526,0.005,69128.0,69095.0,0.01241351]
[1770483608725,0.005,69129.0,69095.0,0.01241351]
[1770483609125,0.005,69128.0,69095.0,0.01241351]
[1770483609732,0.005,69127.0,69095.0,0.01241351]
[1770483609937,0.005,69128.0,69095.0,0.01141351]
[1770483610434,0.005,69127.0,69095.0,0.01141351]
[1770483610734,0.005,69128.0,69095.0,0.01141351]
[1770483611130,0.005,69127.0,69095.0,0.01141351]
[1770483611330,0.005,69128.0,69095.0,0.01141351]
[1770483611740,0.005,69127.0,69095.0,0.01241351]
[1770483612035,0.005,69128.0,69095.0,0.01241351]
[1770483612636,0.01067165,69149.0,69110.0,0.14704915]
[1770483612828,0.01067165,69149.0,69111.0,0.0105201]
[1770483613236,0.01067165,69149.0,69119.0,0.0105201]
[1770483613436,0.01603238,69158.0,69119.0,0.0105201]
[1770483613638,0.01583238,69158.0,69131.0,0.0105201]
[1770483615932,0.01583238,69158.0,69131.0,0.0115201]
[1770483616130,0.01583238,69158.0,69133.0,0.0105201]
[1770483617035,0.01053053,69177.0,69133.0,0.0105201]
[1770483617234,0.01038941,69177.0,69133.0,0.0105201]
[1770483618337,0.01038941,69177.0,69134.0,0.0105201]
[1770483619245,0.01038941,69177.0,69141.0,0.0105201]
[1770483621743,0.01038941,69177.0,69143.0,0.0105201]
[1770483622634,0.01038941,69177.0,69151.0,0.0105201]
[1770483623638,0.01067165,69188.0,69151.0,0.0105201]
[1770483625439,0.01067165,69188.0,69142.0,1.5105201]